fUSD/lending_fUSD_20250512
["ID","MTS","AMOUNT","RATE_DAILY","PERIOD"]
[360862492,1747078257467,-1787.09,0.00013863,2]
[360862493,1747078257479,-400.0,0.00013863,2]
[360862494,1747078257492,-335.65222193,0.00013863,2]
[360862495,1747078257503,-400.0,0.00013863,2]
[360862496,1747078257517,-400.0,0.00013863,2]
[360862497,1747078257530,-1366.63,0.00013863,2]
[360862498,1747078257543,-400.0,0.00013863,2]
[360862499,1747078257555,-400.0,0.00013863,2]
[360862500,1747078257565,-400.0,0.00013863,2]
[360862501,1747078257575,-671.93,0.00013863,2]
[360862502,1747078257585,-400.0,0.00013863,2]
[360862503,1747078257594,-10762.75,0.00013863,2]
[360862504,1747078257604,-298.13211827,0.00013863,2]
[360862505,1747078257614,-222.67,0.00013863,2]
[360862506,1747078257623,-516.59,0.00013863,2]
[360862507,1747078257633,-400.0,0.00013863,2]
[360862508,1747078257644,-400.0,0.00013863,2]
[360862509,1747078257654,-400.0,0.00013863,2]
[360862510,1747078257664,-591.54,0.00013863,2]
[360862511,1747078257674,-799.21,0.00013863,2]
[360862512,1747078257683,-400.0,0.00013863,2]
[360862513,1747078257693,-688.07,0.00013863,2]
[360862514,1747078257702,-1742.63,0.00013863,2]
[360862515,1747078257712,-966.06,0.00013863,2]
[360862516,1747078257721,-400.0,0.00013863,2]
[360862517,1747078257731,-332.09,0.00013863,2]
[360862518,1747078257741,-400.0,0.00013863,2]
[360862519,1747078257750,-400.0,0.00013863,2]
[360862520,1747078257760,-536.74,0.00013863,2]
[360862521,1747078257769,-682.67,0.00013863,2]
[360862522,1747078257780,-432.65,0.00013863,2]
[360862523,1747078257789,-425.59,0.00013863,2]
[360862524,1747078257799,-400.0,0.00013863,2]
[360862525,1747078257808,-400.0,0.00013863,2]
[360862526,1747078257818,-490.38,0.00013863,2]
[360862527,1747078257828,-400.0,0.00013863,2]
[360862528,1747078257837,-813.02,0.00013863,2]
[360862529,1747078257847,-400.0,0.00013863,2]
[360862530,1747078257856,-400.0,0.00013863,2]
[360862531,1747078257866,-616.54,0.00013863,2]
[360862532,1747078258066,-1520.7,0.00013863,2]
[360862533,1747078258174,-400.0,0.00013863,2]
[360862534,1747078258195,-400.0,0.00013863,2]
[360862535,1747078258204,-400.0,0.00013863,2]
[360862536,1747078258214,-400.0,0.00013863,2]
[360862537,1747078258223,-1540.55,0.00013863,2]
[360862538,1747078258233,-400.0,0.00013863,2]
[360862539,1747078258243,-400.0,0.00013863,2]
[360862540,1747078258253,-460.63,0.00013863,2]
[360862541,1747078258263,-612.68767295,0.00013863,2]
[360862542,1747078258275,-400.0,0.00013863,2]
[360862543,1747078258284,-400.0,0.00013863,2]
[360862544,1747078258295,-485.46,0.00013863,2]
[360862545,1747078258305,-723.4,0.00013863,2]
[360862546,1747078258314,-400.0,0.00013863,2]
[360862547,1747078258323,-280.84,0.00013863,2]
[360862548,1747078258333,-544.65,0.00013863,2]
[360862549,1747078258342,-206.12,0.00013863,2]
[360862550,1747078258356,-500.0,0.00013873,2]
[360862551,1747078258365,-500.0,0.00013873,2]
[360862552,1747078258376,-500.0,0.00013873,2]
[360862553,1747078258386,-500.0,0.00013873,2]
[360862554,1747078258402,-500.0,0.00013873,2]
[360862555,1747078258411,-229.51079889,0.00013873,2]
[360862556,1747078258421,-507.35604364,0.00013873,2]
[360862557,1747078258430,-500.0,0.00013873,2]
[360862558,1747078258440,-500.0,0.00013873,2]
[360862559,1747078258449,-500.0,0.00013873,2]
[360862560,1747078258459,-553.24587881,0.00013873,2]
[360862561,1747078258470,-961.01491686,0.00013878,2]
[360862562,1747078258479,-150.0,0.00013878,2]
[360862563,1747078258488,-303.16,0.00013879,2]
[360862564,1747078258499,-300.39,0.00013879,2]
[360862565,1747078258508,-301.06,0.00013879,2]
[360862566,1747078258519,-304.38,0.00013879,2]
[360862567,1747078258528,-303.69,0.00013879,2]
[360862568,1747078258537,-300.43,0.00013879,2]
[360862569,1747078258546,-305.35,0.00013879,2]
[360862570,1747078258556,-302.21,0.00013879,2]
[360862571,1747078258565,-300.07,0.00013879,2]
[360862572,1747078258574,-301.74,0.00013879,2]
[360862573,1747078258584,-301.09,0.00013879,2]
[360862574,1747078258593,-304.61,0.00013879,2]
[360862575,1747078258602,-300.18,0.00013879,2]
[360862576,1747078258612,-303.47,0.00013879,2]
[360862577,1747078258621,-300.66,0.00013879,2]
[360862578,1747078258631,-150.0,0.00013896,2]
[360862579,1747078258643,-1586.36655437,0.000139,2]
[360862580,1747078258656,-169.98910086,0.00013907,2]
[360862581,1747078258665,-150.0,0.00013911,2]
[360862582,1747078258675,-150.0,0.00013915,2]
[360862583,1747078258685,-400.0,0.00013916,2]
[360862584,1747078258694,-487.94,0.00013916,2]
[360862585,1747078258704,-491.26,0.00013916,2]
[360862586,1747078258713,-400.0,0.00013916,2]
[360862587,1747078258722,-284.58025181,0.00013916,2]
[360862588,1747078258731,-357.08,0.00013916,2]
[360862589,1747078258741,-500.0,0.00013916,2]
[360862590,1747078258751,-400.0,0.00013916,2]
[360862591,1747078258760,-400.0,0.00013916,2]
[360862592,1747078258769,-400.0,0.00013916,2]
[360862593,1747078258779,-400.0,0.00013916,2]
[360862594,1747078258789,-400.0,0.00013916,2]
[360862595,1747078258798,-400.0,0.00013916,2]
[360862596,1747078258807,-469.4791086,0.00013916,2]
[360862597,1747078258816,-174.6,0.00013916,2]
[360862598,1747078258825,-400.0,0.00013916,2]
[360862599,1747078258836,-400.0,0.00013916,2]
[360862600,1747078258845,-208.24,0.00013916,2]
[360862601,1747078258854,-400.0,0.00013916,2]
[360862602,1747078258863,-217.68,0.00013916,2]
[360862603,1747078258873,-154.7209565,0.00013916,2]
[360862604,1747078258882,-400.0,0.00013916,2]
[360862605,1747078258891,-400.0,0.00013916,2]
[360862606,1747078258903,-400.0,0.00013916,2]
[360862607,1747078258912,-412.98,0.00013916,2]
[360862608,1747078258921,-400.0,0.00013916,2]
[360862609,1747078258931,-360.94,0.00013916,2]
[360862610,1747078258940,-400.0,0.00013916,2]
[360862611,1747078258949,-400.0,0.00013916,2]
[360862612,1747078258959,-399.02,0.00013916,2]
[360862613,1747078258968,-400.0,0.00013916,2]
[360862614,1747078258977,-247.29,0.00013916,2]
[360862615,1747078258987,-400.0,0.00013916,2]
[360862616,1747078258996,-500.0,0.00013916,2]
[360862617,1747078259006,-400.0,0.00013916,2]
[360862618,1747078259015,-3770.75,0.00013916,2]
[360862619,1747078259025,-400.0,0.00013916,2]
[360862620,1747078259034,-200.0003295,0.00013916,2]
[360862621,1747078259043,-500.0,0.00013916,2]
[360862622,1747078259052,-848.71,0.00013916,2]
[360862623,1747078259062,-400.0,0.00013916,2]
[360862624,1747078259071,-500.0,0.00013916,2]
[360862625,1747078259080,-482.76,0.00013916,2]
[360862626,1747078259090,-571.97,0.00013916,2]
[360862627,1747078259099,-169.2,0.00013916,2]
[360862628,1747078259109,-198.72,0.00013916,2]
[360862629,1747078259119,-400.0,0.00013916,2]
[360862630,1747078259127,-389.55,0.00013916,2]
[360862631,1747078259137,-400.0,0.00013916,2]
[360862632,1747078259147,-252.92125638,0.00013916,2]
[360862633,1747078259411,-400.0,0.00013753,2]
[360862634,1747078259421,-73.35548937,0.00013916,2]
[360862635,1747078259431,-400.0,0.00013916,2]
[360862636,1747078259440,-400.0,0.00013916,2]
[360862637,1747078259450,-231.6,0.00013916,2]
[360862638,1747078259459,-500.0,0.00013916,2]
[360862639,1747078259470,-400.0,0.00013916,2]
[360862640,1747078259479,-500.0,0.00013917,2]
[360862641,1747078259489,-400.0,0.00013917,2]
[360862642,1747078259498,-400.0,0.00013917,2]
[360862643,1747078259507,-400.0,0.00013917,2]
[360862644,1747078259517,-426.02,0.00013917,2]
[360862645,1747078259526,-400.0,0.00013917,2]
[360862646,1747078259538,-303.06,0.00013917,2]
[360862647,1747078259547,-400.0,0.00013917,2]
[360862648,1747078259555,-400.0,0.00013917,2]
[360862649,1747078259565,-400.0,0.00013917,2]
[360862650,1747078259574,-400.0,0.00013917,2]
[360862651,1747078259583,-443.38,0.00013917,2]
[360862652,1747078259592,-400.0,0.00013917,2]
[360862653,1747078259601,-400.0,0.00013917,2]
[360862654,1747078259610,-400.0,0.00013917,2]
[360862655,1747078259619,-173.96205001,0.00013917,2]
[360862656,1747078259629,-400.0,0.00013917,2]
[360862657,1747078259638,-384.3,0.00013917,2]
[360862658,1747078259649,-628.01,0.00013917,2]
[360862659,1747078259658,-400.0,0.00013917,2]
[360862660,1747078259668,-400.0,0.00013917,2]
[360862661,1747078259677,-842.57,0.00013917,2]
[360862662,1747078259687,-940.28,0.00013917,2]
[360862663,1747078259696,-406.12,0.00013917,2]
[360862664,1747078259705,-400.0,0.00013917,2]
[360862665,1747078259714,-400.0,0.00013917,2]
[360862666,1747078259723,-400.0,0.00013917,2]
[360862667,1747078259733,-400.0,0.00013917,2]
[360862668,1747078259742,-538.56,0.00013917,2]
[360862669,1747078259751,-398.14,0.00013917,2]
[360862670,1747078259760,-400.0,0.00013917,2]
[360862671,1747078259769,-400.0,0.00013917,2]
[360862672,1747078259779,-400.0,0.00013917,2]
[360862673,1747078259788,-400.0,0.00013917,2]
[360862674,1747078259797,-954.93,0.00013917,2]
[360862675,1747078259806,-400.0,0.00013917,2]
[360862676,1747078259815,-400.0,0.00013917,2]
[360862677,1747078259825,-400.0,0.00013917,2]
[360862678,1747078259834,-400.0,0.00013917,2]
[360862679,1747078259844,-400.0,0.00013917,2]
[360862680,1747078259853,-400.0,0.00013917,2]
[360862681,1747078259863,-400.0,0.00013917,2]
[360862682,1747078259872,-344.85,0.00013917,2]
[360862683,1747078259883,-350.9,0.00013917,2]
[360862684,1747078259892,-400.0,0.00013917,2]
[360862685,1747078259903,-400.0,0.00013917,2]
[360862686,1747078259912,-512.5,0.00013917,2]
[360862687,1747078259922,-483.76,0.00013917,2]
[360862688,1747078259931,-400.0,0.00013917,2]
[360862689,1747078259941,-400.0,0.00013917,2]
[360862690,1747078259950,-400.0,0.00013917,2]
[360862691,1747078259959,-400.0,0.00013917,2]
[360862692,1747078259968,-400.0,0.00013917,2]
[360862693,1747078259978,-257.66,0.00013917,2]
[360862694,1747078259987,-400.0,0.00013917,2]
[360862695,1747078259997,-400.0,0.00013917,2]
[360862696,1747078260006,-400.0,0.00013917,2]
[360862697,1747078260015,-527.78,0.00013917,2]
[360862698,1747078260024,-400.0,0.00013917,2]
[360862699,1747078260034,-445.26,0.00013917,2]
[360862700,1747078260043,-400.0,0.00013917,2]
[360862701,1747078260052,-400.0,0.00013917,2]
[360862702,1747078260062,-400.0,0.00013917,2]
[360862703,1747078260071,-400.0,0.00013917,2]
[360862704,1747078260080,-343.3,0.00013917,2]
[360862705,1747078260090,-196.371393,0.00013917,2]
[360862706,1747078260099,-329.55,0.00013917,2]
[360862707,1747078260110,-490.18,0.00013917,2]
[360862708,1747078260121,-400.0,0.00013917,2]
[360862709,1747078260131,-332.57,0.00013917,2]
[360862710,1747078260140,-400.0,0.00013917,2]
[360862711,1747078260151,-908.71,0.00013917,2]
[360862712,1747078260161,-400.0,0.00013917,2]
[360862713,1747078260171,-400.0,0.00013917,2]
[360862714,1747078260180,-400.0,0.00013917,2]
[360862715,1747078260190,-400.0,0.00013917,2]
[360862716,1747078260199,-485.31,0.00013917,2]
[360862717,1747078260209,-400.0,0.00013917,2]
[360862718,1747078260218,-437.49,0.00013917,2]
[360862719,1747078260227,-484.23,0.00013917,2]
[360862720,1747078260237,-400.0,0.00013917,2]
[360862721,1747078260246,-400.0,0.00013917,2]
[360862722,1747078260256,-400.0,0.00013917,2]
[360862723,1747078260266,-400.0,0.00013917,2]
[360862724,1747078260275,-520.17,0.00013917,2]
[360862725,1747078260285,-400.0,0.00013917,2]
[360862726,1747078260295,-400.0,0.00013917,2]
[360862727,1747078260304,-1058.23,0.00013917,2]
[360862728,1747078260313,-529.74,0.00013917,2]
[360862729,1747078260322,-400.0,0.00013917,2]
[360862730,1747078260331,-1184.95,0.00013917,2]
[360862731,1747078260340,-381.86,0.00013917,2]
[360862732,1747078260352,-1300.95,0.00013917,2]
[360862733,1747078260362,-495.24,0.00013917,2]
[360862734,1747078260371,-523.7,0.00013917,2]
[360862735,1747078260380,-573.34,0.00013917,2]
[360862736,1747078260389,-400.0,0.00013917,2]
[360862737,1747078260400,-30738.24,0.00013917,2]
[360862738,1747078260409,-400.0,0.00013917,2]
[360862739,1747078260419,-2760.62,0.00013917,2]
[360862740,1747078260429,-1497.52,0.00013917,2]
[360862741,1747078260438,-465.43,0.00013917,2]
[360862742,1747078260447,-400.0,0.00013917,2]
[360862743,1747078260457,-400.0,0.00013917,2]
[360862744,1747078260466,-36233.09,0.00013917,2]
[360862745,1747078260476,-400.0,0.00013917,2]
[360862746,1747078260485,-400.0,0.00013917,2]
[360862747,1747078260495,-493.03,0.00013917,2]
[360862748,1747078260504,-404.36,0.00013917,2]
[360862749,1747078260516,-624.73,0.00013917,2]
[360862750,1747078260526,-400.0,0.00013917,2]
[360862751,1747078260536,-400.0,0.00013917,2]
[360862752,1747078260545,-400.0,0.00013917,2]
[360862753,1747078260555,-400.0,0.00013917,2]
[360862754,1747078260564,-400.0,0.00013917,2]
[360862755,1747078260573,-1787.09,0.00013917,2]
[360862756,1747078260582,-400.0,0.00013917,2]
[360862757,1747078260592,-400.0,0.00013917,2]
[360862758,1747078260602,-400.0,0.00013917,2]
[360862759,1747078260611,-1366.63,0.00013917,2]
[360862760,1747078260621,-400.0,0.00013917,2]
[360862761,1747078260630,-400.0,0.00013917,2]
[360862762,1747078260640,-400.0,0.00013917,2]
[360862763,1747078260649,-671.93,0.00013917,2]
[360862764,1747078260659,-400.0,0.00013917,2]
[360862765,1747078260668,-10762.75,0.00013917,2]
[360862766,1747078260678,-516.59,0.00013917,2]
[360862767,1747078260687,-400.0,0.00013917,2]
[360862768,1747078260697,-400.0,0.00013917,2]
[360862769,1747078260706,-400.0,0.00013917,2]
[360862770,1747078260716,-591.54,0.00013917,2]
[360862771,1747078260726,-799.21,0.00013917,2]
[360862772,1747078260735,-400.0,0.00013917,2]
[360862773,1747078260745,-688.07,0.00013917,2]
[360862774,1747078260754,-1742.63,0.00013917,2]
[360862775,1747078260764,-966.06,0.00013917,2]
[360862776,1747078260774,-400.0,0.00013917,2]
[360862777,1747078260784,-400.0,0.00013917,2]
[360862778,1747078260793,-400.0,0.00013917,2]
[360862779,1747078260802,-682.67,0.00013917,2]
[360862780,1747078260812,-536.74,0.00013917,2]
[360862781,1747078260820,-432.65,0.00013917,2]
[360862782,1747078260830,-425.59,0.00013917,2]
[360862783,1747078260839,-400.0,0.00013917,2]
[360862784,1747078260848,-400.0,0.00013917,2]
[360862785,1747078260858,-490.38,0.00013917,2]
[360862786,1747078260867,-400.0,0.00013917,2]
[360862787,1747078260877,-813.02,0.00013917,2]
[360862788,1747078260886,-542.16,0.00013917,2]
[360862789,1747078260895,-400.0,0.00013917,2]
[360862790,1747078260905,-616.54,0.00013917,2]
[360862791,1747078260915,-1520.7,0.00013917,2]
[360862792,1747078260924,-400.0,0.00013917,2]
[360862793,1747078260933,-400.0,0.00013917,2]
[360862794,1747078260942,-400.0,0.00013917,2]
[360862795,1747078260952,-228.55510174,0.00013917,2]
[360862796,1747078260961,-1540.55,0.00013917,2]
[360862797,1747078260970,-400.0,0.00013917,2]
[360862798,1747078260979,-400.0,0.00013917,2]
[360862799,1747078260989,-460.63,0.00013917,2]
[360862800,1747078260998,-400.0,0.00013917,2]
[360862801,1747078261010,-400.0,0.00013917,2]
[360862802,1747078261020,-485.46,0.00013917,2]
[360862803,1747078261030,-723.4,0.00013917,2]
[360862804,1747078261039,-400.0,0.00013917,2]
[360862805,1747078261048,-544.65,0.00013917,2]
[360862806,1747078261058,-457.29,0.00013918,2]
[360862807,1747078261067,-803.73,0.00013918,2]
[360862808,1747078261077,-150.0,0.00013918,2]
[360862809,1747078261086,-155.564,0.00013919,2]
[360862810,1747078261107,-2292.906,0.00013919,2]
[360862811,1747078261118,-302.82,0.00013921,2]
[360862812,1747078261129,-301.04,0.00013921,2]
[360862813,1747078261139,-303.2,0.00013921,2]
[360862814,1747078261152,-300.55,0.00013921,2]
[360862815,1747078261162,-300.59,0.00013921,2]
[360862816,1747078261173,-304.58,0.00013921,2]
[360862817,1747078261186,-185.47347403,0.00013929,2]
[360862818,1747078261197,-1586.36655431,0.00013934,2]
[360862819,1747078261208,-305.61,0.00013937,2]
[360862820,1747078261220,-302.71,0.00013937,2]
[360862821,1747078261230,-305.32,0.00013937,2]
[360862822,1747078261241,-150.0,0.00013961,2]
[360862823,1747078261253,-774.0,0.00013963,2]
[360862824,1747078261264,-1586.36655431,0.00013969,2]
[360862825,1747078261274,-400.0,0.00013971,2]
[360862826,1747078261284,-400.0,0.00013971,2]
[360862827,1747078261294,-400.0,0.00013971,2]
[360862828,1747078261307,-226.04815169,0.00013971,2]
[360862829,1747078261524,-153.1,0.00013971,2]
[360862830,1747078261540,-400.0,0.00013971,2]
[360862831,1747078261549,-400.0,0.00013971,2]
[360862832,1747078261560,-400.0,0.00013971,2]
[360862833,1747078261570,-400.0,0.00013971,2]
[360862834,1747078261581,-400.0,0.00013971,2]
[360862835,1747078261590,-454.62,0.00013971,2]
[360862836,1747078261600,-400.0,0.00013971,2]
[360862837,1747078261609,-400.0,0.00013971,2]
[360862838,1747078261619,-400.0,0.00013971,2]
[360862839,1747078261628,-412.98,0.00013971,2]
[360862840,1747078261638,-400.0,0.00013971,2]
[360862841,1747078261648,-400.0,0.00013971,2]
[360862842,1747078261661,-284.97,0.00013971,2]
[360862843,1747078261670,-400.0,0.00013971,2]
[360862844,1747078261680,-422.52,0.00013971,2]
[360862845,1747078261690,-263.35,0.00013971,2]
[360862846,1747078261700,-3770.75,0.00013971,2]
[360862847,1747078261710,-400.0,0.00013971,2]
[360862848,1747078261720,-848.71,0.00013971,2]
[360862849,1747078261730,-400.0,0.00013971,2]
[360862850,1747078261740,-571.97,0.00013971,2]
[360862851,1747078261750,-400.0,0.00013971,2]
[360862852,1747078261759,-400.0,0.00013971,2]
[360862853,1747078261769,-344.78,0.00013971,2]
[360862854,1747078261779,-500.0,0.00013971,2]
[360862855,1747078261789,-400.0,0.00013971,2]
[360862856,1747078261799,-265.86,0.00013971,2]
[360862857,1747078261808,-151.0,0.00013972,2]
[360862858,1747078261818,-400.0,0.00013972,2]
[360862859,1747078261828,-400.0,0.00013972,2]
[360862860,1747078261837,-400.0,0.00013972,2]
[360862861,1747078261846,-426.02,0.00013972,2]
[360862862,1747078261856,-400.0,0.00013972,2]
[360862863,1747078261866,-400.0,0.00013972,2]
[360862864,1747078261876,-174.54,0.00013972,2]
[360862865,1747078261889,-400.0,0.00013972,2]
[360862866,1747078261899,-400.0,0.00013972,2]
[360862867,1747078261914,-443.38,0.00013972,2]
[360862868,1747078261923,-400.0,0.00013972,2]
[360862869,1747078261932,-400.0,0.00013972,2]
[360862870,1747078261942,-400.0,0.00013972,2]
[360862871,1747078261952,-400.0,0.00013972,2]
[360862872,1747078261962,-628.01,0.00013972,2]
[360862873,1747078261972,-400.0,0.00013972,2]
[360862874,1747078261982,-400.0,0.00013972,2]
[360862875,1747078261991,-842.57,0.00013972,2]
[360862876,1747078262002,-940.28,0.00013972,2]
[360862877,1747078262011,-406.12,0.00013972,2]
[360862878,1747078262021,-400.0,0.00013972,2]
[360862879,1747078262031,-400.0,0.00013972,2]
[360862880,1747078262041,-400.0,0.00013972,2]
[360862881,1747078262051,-400.0,0.00013972,2]
[360862882,1747078262062,-538.56,0.00013972,2]
[360862883,1747078262072,-400.0,0.00013972,2]
[360862884,1747078262082,-400.0,0.00013972,2]
[360862885,1747078262091,-400.0,0.00013972,2]
[360862886,1747078262100,-400.0,0.00013972,2]
[360862887,1747078262110,-954.93,0.00013972,2]
[360862888,1747078262119,-400.0,0.00013972,2]
[360862889,1747078262129,-400.0,0.00013972,2]
[360862890,1747078262139,-400.0,0.00013972,2]
[360862891,1747078262148,-400.0,0.00013972,2]
[360862892,1747078262162,-400.0,0.00013972,2]
[360862893,1747078262171,-400.0,0.00013972,2]
[360862894,1747078262181,-227.52,0.00013972,2]
[360862895,1747078262191,-400.0,0.00013972,2]
[360862896,1747078262200,-400.0,0.00013972,2]
[360862897,1747078262210,-400.0,0.00013972,2]
[360862898,1747078262220,-400.0,0.00013972,2]
[360862899,1747078262229,-491.74,0.00013972,2]
[360862900,1747078262239,-476.72,0.00013972,2]
[360862901,1747078262249,-400.0,0.00013972,2]
[360862902,1747078262259,-400.0,0.00013972,2]
[360862903,1747078262268,-400.0,0.00013972,2]
[360862904,1747078262278,-151.34,0.00013972,2]
[360862905,1747078262288,-400.0,0.00013972,2]
[360862906,1747078262298,-277.54,0.00013972,2]
[360862907,1747078262309,-400.0,0.00013972,2]
[360862908,1747078262319,-400.0,0.00013972,2]
[360862909,1747078262329,-400.0,0.00013972,2]
[360862910,1747078262339,-196.371393,0.00013972,2]
[360862911,1747078262352,-400.0,0.00013972,2]
[360862912,1747078262363,-167.453206,0.00013972,2]
[360862913,1747078262374,-400.0,0.00013972,2]
[360862914,1747078262384,-908.71,0.00013972,2]
[360862915,1747078262395,-252.66,0.00013972,2]
[360862916,1747078262409,-400.0,0.00013972,2]
[360862917,1747078262418,-400.0,0.00013972,2]
[360862918,1747078262430,-400.0,0.00013972,2]
[360862919,1747078262440,-400.0,0.00013972,2]
[360862920,1747078262450,-437.49,0.00013972,2]
[360862921,1747078262459,-484.23,0.00013972,2]
[360862922,1747078262469,-400.0,0.00013972,2]
[360862923,1747078262479,-400.0,0.00013972,2]
[360862924,1747078262489,-400.0,0.00013972,2]
[360862925,1747078262500,-400.0,0.00013972,2]
[360862926,1747078262510,-520.17,0.00013972,2]
[360862927,1747078262519,-150.0,0.00013972,2]
[360862928,1747078262529,-400.0,0.00013972,2]
[360862929,1747078262538,-400.0,0.00013972,2]
[360862930,1747078262548,-1058.23,0.00013972,2]
[360862931,1747078262558,-529.74,0.00013972,2]
[360862932,1747078262568,-400.0,0.00013972,2]
[360862933,1747078262577,-1184.95,0.00013972,2]
[360862934,1747078262588,-1300.95,0.00013972,2]
[360862935,1747078262597,-495.24,0.00013972,2]
[360862936,1747078262608,-151.0,0.00013972,2]
[360862937,1747078262618,-523.7,0.00013972,2]
[360862938,1747078262627,-573.34,0.00013972,2]
[360862939,1747078262637,-151.0,0.00013972,2]
[360862940,1747078262646,-400.0,0.00013972,2]
[360862941,1747078262659,-30738.24,0.00013972,2]
[360862942,1747078262669,-184.24,0.00013972,2]
[360862943,1747078262678,-2760.62,0.00013972,2]
[360862944,1747078262687,-1497.52,0.00013972,2]
[360862945,1747078262698,-465.43,0.00013972,2]
[360862946,1747078262707,-400.0,0.00013972,2]
[360862947,1747078262717,-400.0,0.00013972,2]
[360862948,1747078262727,-36233.09,0.00013972,2]
[360862949,1747078262737,-400.0,0.00013972,2]
[360862950,1747078262748,-400.0,0.00013972,2]
[360862951,1747078262758,-404.36,0.00013972,2]
[360862952,1747078262768,-624.73,0.00013972,2]
[360862953,1747078262777,-400.0,0.00013972,2]
[360862954,1747078262787,-400.0,0.00013972,2]
[360862955,1747078262797,-400.0,0.00013972,2]
[360862956,1747078262807,-400.0,0.00013972,2]
[360862957,1747078262817,-400.0,0.00013972,2]
[360862958,1747078262827,-1787.09,0.00013972,2]
[360862959,1747078262838,-400.0,0.00013972,2]
[360862960,1747078262848,-400.0,0.00013972,2]
[360862961,1747078262857,-400.0,0.00013972,2]
[360862962,1747078262867,-1366.63,0.00013972,2]
[360862963,1747078262876,-400.0,0.00013972,2]
[360862964,1747078262886,-400.0,0.00013972,2]
[360862965,1747078262896,-400.0,0.00013972,2]
[360862966,1747078262910,-671.93,0.00013972,2]
[360862967,1747078262920,-400.0,0.00013972,2]
[360862968,1747078262930,-10762.75,0.00013972,2]
[360862969,1747078262940,-516.59,0.00013972,2]
[360862970,1747078262950,-400.0,0.00013972,2]
[360862971,1747078262960,-400.0,0.00013972,2]
[360862972,1747078262970,-400.0,0.00013972,2]
[360862973,1747078262980,-591.54,0.00013972,2]
[360862974,1747078262990,-799.21,0.00013972,2]
[360862975,1747078262999,-400.0,0.00013972,2]
[360862976,1747078263009,-688.07,0.00013972,2]
[360862977,1747078263018,-1742.63,0.00013972,2]
[360862978,1747078263028,-966.06,0.00013972,2]
[360862979,1747078263038,-400.0,0.00013972,2]
[360862980,1747078263048,-400.0,0.00013972,2]
[360862981,1747078263059,-400.0,0.00013972,2]
[360862982,1747078263069,-682.67,0.00013972,2]
[360862983,1747078263080,-536.74,0.00013972,2]
[360862984,1747078263090,-432.65,0.00013972,2]
[360862985,1747078263101,-425.59,0.00013972,2]
[360862986,1747078263111,-400.0,0.00013972,2]
[360862987,1747078263121,-400.0,0.00013972,2]
[360862988,1747078263132,-400.0,0.00013972,2]
[360862989,1747078263142,-490.38,0.00013972,2]
[360862990,1747078263156,-813.02,0.00013972,2]
[360862991,1747078263166,-400.0,0.00013972,2]